Departmental family,Entity,Date Paid,Expense type,Expense Area,Supplier,Transaction Number, Amount , Description , Supplier Type , Expenditure Type 
UK Statistics Authority,Office for National Statistics,01-Apr-19,Council Tax,"Methods, Data and Research",Westminster City Council,130403,"111,804.00", Statistical Data, Large , Programme 
UK Statistics Authority,Office for National Statistics,01-Apr-19,Business Rates,People and Busines Services,Westminster City Council,130404,"765,040.00", Drummond Gate Rates, Large , Programme 
UK Statistics Authority,Office for National Statistics,01-Apr-19,IT (Owned) at Costs - Additions,Digital Services and Technology,CDW Limited,130406,"33,982.66", Fixed Asset Computer Additions , Large , Programme 
UK Statistics Authority,Office for National Statistics,01-Apr-19,IT Contractual Services,Digital Services and Technology,QA Ltd,130409,"126,063.00", Information Management Services, Large , Programme 
UK Statistics Authority,Office for National Statistics,01-Apr-19,Major Works Over 25K,People and Busines Services,Paramount Office Interiors Ltd,130410,"5,336.22", Major Works Newport, SME , Programme 
UK Statistics Authority,Office for National Statistics,01-Apr-19,Major Works Over 25K,People and Busines Services,Paramount Office Interiors Ltd,130410,"30,240.72", Major Works Titchfield , SME , Programme 
UK Statistics Authority,Office for National Statistics,02-Apr-19,IT Contractual Services,Digital Services and Technology,Mango Solutions,130935,"39,487.50", Information Mangement Services, SME , Programme 
UK Statistics Authority,Office for National Statistics,02-Apr-19,Telecommunications,Digital Services and Technology,BT Global Services,130938,"49,105.91", BT Cloud Services, Large , Programme 
UK Statistics Authority,Office for National Statistics,02-Apr-19,Contractors,Digital Services and Technology,Medley Business Solutions Ltd,130941,247.18, Information Management Services, Large , Programme 
UK Statistics Authority,Office for National Statistics,02-Apr-19,Contractors Travel,Digital Services and Technology,Medley Business Solutions Ltd,130941,406.22, Information Management Services, Large , Programme 
UK Statistics Authority,Office for National Statistics,02-Apr-19,IT Contractual Services,Digital Services and Technology,Medley Business Solutions Ltd,130941,"14,731.20", Information Management Services, Large , Programme 
UK Statistics Authority,Office for National Statistics,02-Apr-19,IT Contractual Services,Digital Services and Technology,Medley Business Solutions Ltd,130941,"18,532.80", Information Management Services, Large , Programme 
UK Statistics Authority,Office for National Statistics,02-Apr-19,Contractors,Digital Services and Technology,LA International,130942,"6,407.76", Information Management Services , SME , Programme 
UK Statistics Authority,Office for National Statistics,02-Apr-19,Contractors,Digital Services and Technology,LA International,130942,"13,994.38", Information Management Services , SME , Programme 
UK Statistics Authority,Office for National Statistics,02-Apr-19,Contractors,Digital Services and Technology,LA International,130942,"9,867.83", Information Management Services , SME , Programme 
UK Statistics Authority,Office for National Statistics,02-Apr-19,Contractors,Digital Services and Technology,Parity Resources Limited,130943,"3,588.48", Information Management Services, Large , Programme 
UK Statistics Authority,Office for National Statistics,02-Apr-19,Contractors,Digital Services and Technology,Parity Resources Limited,130943,"8,330.40", Information Management Services, Large , Programme 
UK Statistics Authority,Office for National Statistics,02-Apr-19,IT Contractual Services,Digital Services and Technology,Parity Resources Limited,130943,"14,173.44", Information Management Services, Large , Programme 
UK Statistics Authority,Office for National Statistics,03-Apr-19,Travel and Subsistence,"Finance, Planning and Performance",Corporate Travel Management ,130951,"74,931.98", Travel and Accommodation Booking Service , SME , Programme 
UK Statistics Authority,Office for National Statistics,03-Apr-19,IT Contractual Services,Digital Services and Technology,Methods Business & Digital Technology Ltd,130952,"102,360.00", Information Management Services , Large , Programme 
UK Statistics Authority,Office for National Statistics,03-Apr-19,Consultancy,Digital Services and Technology,Cloudwick Technologies UK,130954,"30,223.07", Cloud G Nine Services , SME , Programme 
UK Statistics Authority,Office for National Statistics,03-Apr-19,IT Contractual Services,Digital Services and Technology,Cloudwick Technologies UK,130954,636.39, Cloud G Nine Services , SME , Programme 
UK Statistics Authority,Office for National Statistics,03-Apr-19,Training and Development,Digital Services and Technology,Armakuni Ltd,130955,"39,600.00", Training , SME , Programme 
UK Statistics Authority,Office for National Statistics,04-Apr-19,Consultancy,Digital Services and Technology,SCC,131290,"7,560.00", Information Management Services, Large , Programme 
UK Statistics Authority,Office for National Statistics,04-Apr-19,ICT Outsourcing and Maintenance/Support,Digital Services and Technology,SCC,131290,"240,696.08", Support and Maintenance, Large , Programme 
UK Statistics Authority,Office for National Statistics,04-Apr-19,ICT Outsourcing and Maintenance/Support,Digital Services and Technology,SCC,131290,"12,527.34", Support and Maintenance, Large , Programme 
UK Statistics Authority,Office for National Statistics,04-Apr-19,IT (Owned) at Costs - Additions,Digital Services and Technology,SCC,131290,"30,423.23", Fixed Assets Office Machinery Additions , Large , Programme 
UK Statistics Authority,Office for National Statistics,04-Apr-19,IT Management and Change,Digital Services and Technology,SCC,131290,"17,444.91", Information Management Services, Large , Programme 
UK Statistics Authority,Office for National Statistics,04-Apr-19,Postage,Digital Services and Technology,SCC,131290,653.2, Information Management Services, Large , Programme 
UK Statistics Authority,Office for National Statistics,04-Apr-19,ICT Outsourcing and Maintenance/Support,People and Busines Services,LinkedIn,131299,"72,960.00", Annual License, Large , Programme 
UK Statistics Authority,Office for National Statistics,04-Apr-19,Consultancy,Digital Services and Technology,Equiniti-TopLevel,131307,"44,437.20", Information Management Services, SME , Programme 
UK Statistics Authority,Office for National Statistics,04-Apr-19,IT Contractual Services,Digital Services and Technology,Equiniti-TopLevel,131307,"9,845.04", Information Management Services, SME , Programme 
UK Statistics Authority,Office for National Statistics,04-Apr-19,Travel and Subsistence,"Finance, Planning and Performance",Calder World of Travel,131312,"28,553.01", Corporate Travel Services, SME , Programme 
UK Statistics Authority,Office for National Statistics,05-Apr-19,Furniture > 5K Per Item,People and Busines Services,Ovation Outdoor Furniture,131322,"56,801.40", Major Works Newport, SME , Programme 
UK Statistics Authority,Office for National Statistics,05-Apr-19,ICT Outsourcing and Maintenance/Support,Digital Services and Technology,Amazon Web Services Inc,131330,"75,160.20", Web Services, Large , Programme 
UK Statistics Authority,Office for National Statistics,05-Apr-19,Contractors,Digital Services and Technology,LA International,131332,"28,834.92", Information Management Services , SME , Programme 
UK Statistics Authority,Office for National Statistics,05-Apr-19,Contractors,"Public, Population and Policy - Transformation",LA International,131332,"3,680.22", Information Management Services , SME , Programme 
UK Statistics Authority,Office for National Statistics,05-Apr-19,Contractors,"Public, Population and Policy - Transformation",LA International,131332,"3,524.22", Information Management Services , SME , Programme 
UK Statistics Authority,Office for National Statistics,05-Apr-19,Travel and Subsistence,"Public, Population and Policy - Transformation",LA International,131332,82.08, Information Management Services , SME , Programme 
UK Statistics Authority,Office for National Statistics,05-Apr-19,Childcare Services,"Finance, Planning and Performance",Computershare Voucher Services,131333,"38,504.07", Childcare Vouchers , Large , Programme 
UK Statistics Authority,Office for National Statistics,09-Apr-19,ICT Outsourcing and Maintenance/Support,Digital Services and Technology,SCC,131630,"28,744.19", Support and Maintenance, Large , Programme 
UK Statistics Authority,Office for National Statistics,09-Apr-19,Consultancy,Digital Services and Technology,Insight Direct,131633,"99,503.64", Information Management Services , Large , Programme 
UK Statistics Authority,Office for National Statistics,09-Apr-19,Accommodation and Building Management - Miscellaneous Minor Works,Digital Services and Technology,Gresham Office Furniture Limited,131637,"14,676.60", Smart Working Furniture  , SME , Programme 
UK Statistics Authority,Office for National Statistics,09-Apr-19,Accommodation and Building Management - Miscellaneous Minor Works,People and Busines Services,Gresham Office Furniture Limited,131637,"4,339.08", Smart Working Furniture  , SME , Programme 
UK Statistics Authority,Office for National Statistics,09-Apr-19,Accommodation and Building Management - Miscellaneous Minor Works,"Public, Population and Policy - Operations",Gresham Office Furniture Limited,131637,"18,696.00", Smart Working Furniture  , SME , Programme 
UK Statistics Authority,Office for National Statistics,09-Apr-19,Furniture > 5K Per Item,People and Busines Services,Gresham Office Furniture Limited,131637,"20,455.36", Smart Working Furniture  , SME , Programme 
UK Statistics Authority,Office for National Statistics,09-Apr-19,Furniture > 5K Per Item,"Public, Population and Policy - Operations",Gresham Office Furniture Limited,131637,"84,369.42", Smart Working Furniture  , SME , Programme 
UK Statistics Authority,Office for National Statistics,09-Apr-19,Office Furniture,Economic Statistics Transformation,Gresham Office Furniture Limited,131637,"10,260.90", Smart Working Furniture  , SME , Programme 
UK Statistics Authority,Office for National Statistics,09-Apr-19,Office Furniture,"Public, Population and Policy - Operations",Gresham Office Furniture Limited,131637,"1,284.06", Smart Working Furniture  , SME , Programme 
UK Statistics Authority,Office for National Statistics,10-Apr-19,IT Contractual Services,Policy and Communication,Methods Business & Digital Technology Ltd,132123,"29,700.00", Information Management Services , Large , Programme 
UK Statistics Authority,Office for National Statistics,10-Apr-19,Contractors,Digital Services and Technology,LA International,132124,"16,683.17", Information Management Services , SME , Programme 
UK Statistics Authority,Office for National Statistics,10-Apr-19,Contractors,Digital Services and Technology,LA International,132124,"3,588.30", Information Management Services , SME , Programme 
UK Statistics Authority,Office for National Statistics,10-Apr-19,Contractors,"Methods, Data and Research",LA International,132124,"3,748.50", Information Management Services , SME , Programme 
UK Statistics Authority,Office for National Statistics,10-Apr-19,Contractors,National Accounts and Economic Statistics,LA International,132124,"7,240.72", Information Management Services , SME , Programme 
UK Statistics Authority,Office for National Statistics,10-Apr-19,Auditing Services,"Finance, Planning and Performance",PriceWaterhouseCoopers Llp,132125,"96,589.20", Information Management Services, Large , Programme 
UK Statistics Authority,Office for National Statistics,10-Apr-19,ICT Outsourcing and Maintenance/Support,Digital Services and Technology,Amazon Web Services Inc,132129,"42,182.74", Web Services, Large , Programme 
UK Statistics Authority,Office for National Statistics,11-Apr-19,Capital Major Works > 25K,People and Busines Services,Paramount Office Interiors Ltd,132317,"264,547.52", Major Works Newport, SME , Programme 
UK Statistics Authority,Office for National Statistics,11-Apr-19,Rent Payable,People and Busines Services,James Andrew RSW Ltd,132321,"202,860.00", Drummond Gate Rent, SME , Programme 
UK Statistics Authority,Office for National Statistics,11-Apr-19,IT Contractual Services,Digital Services and Technology,E Synergy Solutions,132323,"148,791.00", Information Management Services , SME , Programme 
UK Statistics Authority,Office for National Statistics,11-Apr-19,Facilities Management Contract Payments,"Finance, Planning and Performance",Vinci Construction UK Limited,132325,"413,072.58", Facility Management Services, Large , Programme 
UK Statistics Authority,Office for National Statistics,11-Apr-19,Contractors,Digital Services and Technology,LA International,132331,"12,815.52", Information Management Services , SME , Programme 
UK Statistics Authority,Office for National Statistics,11-Apr-19,Contractors,Policy and Communication,LA International,132331,"20,792.90", Information Management Services , SME , Programme 
UK Statistics Authority,Office for National Statistics,11-Apr-19,Consultancy,People and Busines Services,Deloitte,132333,"13,972.80", Census Information Management Service, Large , Programme 
UK Statistics Authority,Office for National Statistics,11-Apr-19,Consultancy,"Public, Population and Policy - Transformation",Deloitte,132333,"31,309.20", Census Information Management Service, Large , Programme 
UK Statistics Authority,Office for National Statistics,11-Apr-19,Auditing Services,"Finance, Planning and Performance",PriceWaterhouseCoopers Llp,132335,"59,940.00", Information Management Services, Large , Programme 
UK Statistics Authority,Office for National Statistics,12-Apr-19,Consultancy,"Public, Population and Policy - Transformation",Bloom Procurement Services Ltd,132567,"812,485.20", Census Service Integration Contract, Large , Programme 
UK Statistics Authority,Office for National Statistics,12-Apr-19,Rent Payable,People and Busines Services,James Andrew RSW Ltd,132568,"58,605.00", Drummond Gate Service Charge, SME , Programme 
UK Statistics Authority,Office for National Statistics,12-Apr-19,Non-IT Contractual Payments,"Public, Population and Policy - Operations",Adecco UK Limited,132572,"1,439,209.20"," Census Recruitment, Training and Payroll Services", SME , Programme 
UK Statistics Authority,Office for National Statistics,12-Apr-19,IT Contractual Services,Digital Services and Technology,E Synergy Solutions,132575,"136,443.00", Information Management Services , SME , Programme 
UK Statistics Authority,Office for National Statistics,12-Apr-19,Travel and Subsistence,"Finance, Planning and Performance",Corporate Travel Management ,132583,"70,925.34", Travel and Accommodation Booking Service , SME , Programme 
UK Statistics Authority,Office for National Statistics,12-Apr-19,Public Services Provision,"Public, Population and Policy - Operations",Serco Ltd,132594,"449,498.58", Census Contact Centre Contract, Large , Programme 
UK Statistics Authority,Office for National Statistics,12-Apr-19,Council Tax,"Methods, Data and Research",Leeds City Council,132598,"158,478.00", Statistical Data  , Large , Programme 
UK Statistics Authority,Office for National Statistics,15-Apr-19,IT Contractual Services,Digital Services and Technology,Methods Business & Digital Technology Ltd,132610,"59,700.00", Information Management Services , Large , Programme 
UK Statistics Authority,Office for National Statistics,15-Apr-19,IT Contractual Services,Digital Services and Technology,Methods Business & Digital Technology Ltd,132610,"19,800.00", Information Management Services , Large , Programme 
UK Statistics Authority,Office for National Statistics,15-Apr-19,IT Contractual Services,Digital Services and Technology,Methods Business & Digital Technology Ltd,132610,"21,600.00", Information Management Services , Large , Programme 
UK Statistics Authority,Office for National Statistics,15-Apr-19,IT Contractual Services,Digital Services and Technology,Methods Business & Digital Technology Ltd,132610,"35,100.00", Information Management Services , Large , Programme 
UK Statistics Authority,Office for National Statistics,15-Apr-19,IT Contractual Services,Digital Services and Technology,QA Ltd,132613,"121,452.00", Information Management Services, Large , Programme 
UK Statistics Authority,Office for National Statistics,15-Apr-19,Training and Development,Digital Services and Technology,Armakuni Ltd,132623,"79,245.98", Training , SME , Programme 
UK Statistics Authority,Office for National Statistics,16-Apr-19,Major Works Over 25K,People and Busines Services,Paramount Office Interiors Ltd,132889,"259,164.74", Major Works Christchurch, SME , Programme 
UK Statistics Authority,Office for National Statistics,16-Apr-19,Procurement Cards,"Finance, Planning and Performance",Royal Bank of Scotland,132892,"115,194.84", Multiple Procurement Card Purchases  , Large , Programme 
UK Statistics Authority,Office for National Statistics,16-Apr-19,Stationery,"Finance, Planning and Performance",Royal Bank of Scotland,132892,"8,506.21", Multiple Stationery Procurement Card Purchases  , Large , Programme 
UK Statistics Authority,Office for National Statistics,16-Apr-19,Travel and Subsistence,"Finance, Planning and Performance",Royal Bank of Scotland,132892,"36,002.00", Multiple Travel Procurement Card Purchases  , Large , Programme 
UK Statistics Authority,Office for National Statistics,17-Apr-19,Travel and Subsistence,"Finance, Planning and Performance",Corporate Travel Management ,132913,"62,251.94", Travel and Accommodation Booking Service , SME , Programme 
UK Statistics Authority,Office for National Statistics,17-Apr-19,Contractors,Digital Services and Technology,LA International,132915,"12,864.53", Information Management Services , SME , Programme 
UK Statistics Authority,Office for National Statistics,17-Apr-19,Contractors,Digital Services and Technology,LA International,132915,"3,588.30", Information Management Services , SME , Programme 
UK Statistics Authority,Office for National Statistics,17-Apr-19,Contractors,"Methods, Data and Research",LA International,132915,"7,497.00", Information Management Services , SME , Programme 
UK Statistics Authority,Office for National Statistics,17-Apr-19,Contractors,"Public, Population and Policy - Transformation",LA International,132915,"3,524.22", Information Management Services , SME , Programme 
UK Statistics Authority,Office for National Statistics,17-Apr-19,Consultancy,People and Busines Services,Parity Resources Limited,132916,"10,893.60", Information Management Services, Large , Programme 
UK Statistics Authority,Office for National Statistics,17-Apr-19,Consultancy,"Public, Population and Policy - Transformation",Parity Resources Limited,132916,"16,020.00", Information Management Services, Large , Programme 
UK Statistics Authority,Office for National Statistics,17-Apr-19,Contractors,Digital Services and Technology,Parity Resources Limited,132916,"78,672.24", Information Management Services, Large , Programme 
UK Statistics Authority,Office for National Statistics,17-Apr-19,Contractors,Digital Services and Technology,Parity Resources Limited,132916,"40,146.12", Information Management Services, Large , Programme 
UK Statistics Authority,Office for National Statistics,17-Apr-19,Contractors,Economic Statistics Trasformation,Parity Resources Limited,132916,"2,563.20", Information Management Services, Large , Programme 
UK Statistics Authority,Office for National Statistics,17-Apr-19,Contractors,"Methods, Data and Research",Parity Resources Limited,132916,"25,737.12", Information Management Services, Large , Programme 
UK Statistics Authority,Office for National Statistics,17-Apr-19,Contractors,People and Busines Services,Parity Resources Limited,132916,"28,451.52", Information Management Services, Large , Programme 
UK Statistics Authority,Office for National Statistics,17-Apr-19,Contractors,"Public, Population and Policy - Transformation",Parity Resources Limited,132916,"42,621.48", Information Management Services, Large , Programme 
UK Statistics Authority,Office for National Statistics,17-Apr-19,Contractors,"Public, Population and Policy - Transformation",Parity Resources Limited,132916,13.61, Information Management Services, Large , Programme 
UK Statistics Authority,Office for National Statistics,17-Apr-19,Contractors,"Public, Population and Policy - Transformation",Parity Resources Limited,132916,"3,524.40", Information Management Services, Large , Programme 
UK Statistics Authority,Office for National Statistics,17-Apr-19,Contractors,"Public, Population and Policy - Transformation",Parity Resources Limited,132916,"13,392.72", Information Management Services, Large , Programme 
UK Statistics Authority,Office for National Statistics,17-Apr-19,IT Contractual Services,Digital Services and Technology,Parity Resources Limited,132916,"11,534.40", Information Management Services, Large , Programme 
UK Statistics Authority,Office for National Statistics,17-Apr-19,IT Contractual Services,Digital Services and Technology,Parity Resources Limited,132916,"26,356.80", Information Management Services, Large , Programme 
UK Statistics Authority,Office for National Statistics,17-Apr-19,Short-Term Contract and Agency Staff - Full Cost,People and Busines Services,Parity Resources Limited,132916,"7,257.52", Information Management Services, Large , Programme 
UK Statistics Authority,Office for National Statistics,17-Apr-19,Short-Term Contract and Agency Staff - Full Cost,People and Busines Services,Parity Resources Limited,132916,706.85, Information Management Services, Large , Programme 
UK Statistics Authority,Office for National Statistics,17-Apr-19,Short-Term Contract and Agency Staff - Full Cost,Public Policy Analysis,Parity Resources Limited,132916,"5,967.36", Information Management Services, Large , Programme 
UK Statistics Authority,Office for National Statistics,17-Apr-19,Short-Term Contract and Agency Staff - Full Cost,"Public, Population and Policy - Transformation",Parity Resources Limited,132916,"3,671.35", Information Management Services, Large , Programme 
UK Statistics Authority,Office for National Statistics,17-Apr-19,Travel and Subsistence,"Public, Population and Policy - Transformation",Parity Resources Limited,132916,87.36, Information Management Services, Large , Programme 
UK Statistics Authority,Office for National Statistics,17-Apr-19,IT Management and Change,Digital Services and Technology,Informatica Software Limited,132917,"32,736.01", Maintenance and Support, SME , Programme 
UK Statistics Authority,Office for National Statistics,18-Apr-19,Consultancy,Economic Statistics Transformation,NIESR,133360,"501,916.80", Information Management Services , SME , Programme 
UK Statistics Authority,Office for National Statistics,18-Apr-19,Contractors,Digital Services and Technology,Certes Computing Ltd,133361,"10,824.06", Information Management Services , SME , Programme 
UK Statistics Authority,Office for National Statistics,18-Apr-19,Contractors,People and Busines Services,Certes Computing Ltd,133361,"15,691.67", Information Management Services , SME , Programme 
UK Statistics Authority,Office for National Statistics,18-Apr-19,Contractors,"Public, Population and Policy - Transformation",Certes Computing Ltd,133361,"11,272.80", Information Management Services , SME , Programme 
UK Statistics Authority,Office for National Statistics,18-Apr-19,Accommodation and Building Management - Miscellaneous Minor Works,People and Busines Services,Paramount Office Interiors Ltd,133364,"31,955.06", Major Works Titchfield , SME , Programme 
UK Statistics Authority,Office for National Statistics,18-Apr-19,Capital Major Works > 25K,People and Busines Services,Paramount Office Interiors Ltd,133364,"29,880.00", Major Works Titchfield , SME , Programme 
UK Statistics Authority,Office for National Statistics,18-Apr-19,Contractors,"Public, Population and Policy - Operations",Parity Resources Limited,133366,"20,425.50", Information Management Services, Large , Programme 
UK Statistics Authority,Office for National Statistics,18-Apr-19,Short-Term Contract and Agency Staff - Full Cost,Economic Statistics Transformation,Parity Resources Limited,133366,"6,695.88", Information Management Services, Large , Programme 
UK Statistics Authority,Office for National Statistics,18-Apr-19,Short-Term Contract and Agency Staff - Full Cost,People and Busines Services,Parity Resources Limited,133366,424.1, Information Management Services, Large , Programme 
UK Statistics Authority,Office for National Statistics,23-Apr-19,Travel and Subsistence,"Finance, Planning and Performance",Calder World of Travel,133596,"35,815.91", Corporate Travel Services, SME , Programme 
UK Statistics Authority,Office for National Statistics,23-Apr-19,ICT Outsourcing and Maintenance/Support,Digital Services and Technology,Amazon Web Services Inc,133602,"25,613.75", Web Services, Large , Programme 
UK Statistics Authority,Office for National Statistics,23-Apr-19,Telecommunications,Digital Services and Technology,Vodafone Corporate Ltd,133604,"72,319.96", Information Management Services , Large , Programme 
UK Statistics Authority,Office for National Statistics,23-Apr-19,IT Contractual Services,Digital Services and Technology,E Synergy Solutions,133606,"59,625.60", Information Management Services , SME , Programme 
UK Statistics Authority,Office for National Statistics,24-Apr-19,Office Buildings,Digital Services and Technology,Intellectual Property Office,133888,"74,720.43", Property Services, Large , Programme 
UK Statistics Authority,Office for National Statistics,24-Apr-19,IT Contractual Services,Digital Services and Technology,E Synergy Solutions,133889,"14,868.00", Information Management Services , SME , Programme 
UK Statistics Authority,Office for National Statistics,24-Apr-19,IT Contractual Services,Policy and Communication,E Synergy Solutions,133889,"14,400.00", Information Management Services , SME , Programme 
UK Statistics Authority,Office for National Statistics,24-Apr-19,Telecommunications,Digital Services and Technology,BT Global Services,133894,"29,307.47", BT Cloud Services, Large , Programme 
UK Statistics Authority,Office for National Statistics,24-Apr-19,Postage,"Public, Population and Policy - Operations",DHL Parcel Ltd,133897,"26,733.19", Outgoing Postage, Large , Programme 
UK Statistics Authority,Office for National Statistics,24-Apr-19,Consultancy,Economic Statistics Transformation,Parity Resources Limited,133903,"10,369.07", Information Management Services, Large , Programme 
UK Statistics Authority,Office for National Statistics,24-Apr-19,Contractors,Economic Statistics Transformation,Parity Resources Limited,133903,"9,696.68", Information Management Services, Large , Programme 
UK Statistics Authority,Office for National Statistics,24-Apr-19,Contractors,National Accounts and Economic Statistics,Parity Resources Limited,133903,"11,214.00", Information Management Services, Large , Programme 
UK Statistics Authority,Office for National Statistics,24-Apr-19,Short-Term Contract and Agency Staff - Full Cost,"Public, Population and Policy - Transformation",Parity Resources Limited,133903,"3,783.62", Information Management Services, Large , Programme 
UK Statistics Authority,Office for National Statistics,24-Apr-19,Civil Service Jobs,Digital Services and Technology,Cabinet Office,133908,"29,342.76", Civil Service Psychometric Testing, Large , Programme 
UK Statistics Authority,Office for National Statistics,24-Apr-19,ICT Outsourcing and Maintenance/Support,"Public, Population and Policy - Transformation",TotalMobile Ltd,133909,"291,704.40"," Licenses, Maintenance and Support for Field Management Tool", SME , Programme 
UK Statistics Authority,Office for National Statistics,24-Apr-19,Provision of Ingres Open Road Business Application,Digital Services and Technology,Cysure Limited,133913,"127,883.72", Information Management Services, SME , Programme 
UK Statistics Authority,Office for National Statistics,24-Apr-19,ICT Outsourcing and Maintenance/Support,People and Busines Services,Broadbean,133914,"30,000.00", Annual Licence for Recruitment Portal, Large , Programme 
UK Statistics Authority,Office for National Statistics,24-Apr-19,Contractors,"Public, Population and Policy - Operations",Certeco Ltd,133915,"32,760.00", Census Infornmation Management Services, Large , Programme 
UK Statistics Authority,Office for National Statistics,24-Apr-19,Electricity,People and Busines Services,EDF Energy,30001331,"25,599.52", Electricity Charges Titchfield, Large , Programme 
UK Statistics Authority,Office for National Statistics,24-Apr-19,Electricity,People and Busines Services,EDF Energy,30001331,"26,361.84", Electricity Charges Newport, Large , Programme 
UK Statistics Authority,Office for National Statistics,25-Apr-19,Cotton Tote Bags,"Public, Population and Policy - Transformation",Banner Group Ltd,134111,"86,520.00", Census Tote Bags for Attrition Test, SME , Programme 
UK Statistics Authority,Office for National Statistics,25-Apr-19,IT Management and Change,Digital Services and Technology,Leonardo Mw Ltd,134113,"47,400.00", Security Services, SME , Programme 
UK Statistics Authority,Office for National Statistics,25-Apr-19,Surveys,"Public, Population and Policy - Operations",NatCen Social Research,134114,"69,183.60", Statistical Services, Large , Programme 
UK Statistics Authority,Office for National Statistics,25-Apr-19,Major Works Over 25K,People and Busines Services,Vinci Construction UK Limited,134115,"56,940.00", Facility Management Services, Large , Programme 
UK Statistics Authority,Office for National Statistics,25-Apr-19,In Country Costs Platform Charges,Policy and Communication,Foreign & Commonwealth Office,134117,"435,472.00", Overseas Development Staff Cost, Large , Programme 
UK Statistics Authority,Office for National Statistics,25-Apr-19,ICT Outsourcing and Maintenance/Support,Digital Services and Technology,SCC,134122,"2,096.63", Support and Maintenance, Large , Programme 
UK Statistics Authority,Office for National Statistics,25-Apr-19,IT Management and Change,Digital Services and Technology,SCC,134122,"31,935.77", Information Management Services , Large , Programme 
UK Statistics Authority,Office for National Statistics,25-Apr-19,IT Management and Change,"Public, Population and Policy - Operations",SCC,134122,"46,350.00", Information Management Services , Large , Programme 
UK Statistics Authority,Office for National Statistics,25-Apr-19,Consultancy,Digital Services and Technology,IBM United Kingdom Ltd,134123,"107,647.68", Information Management Services , Large , Programme 
UK Statistics Authority,Office for National Statistics,25-Apr-19,ICT Software Costs,Digital Services and Technology,IBM United Kingdom Ltd,134123,"312,982.66", Information Management Services , Large , Programme 
UK Statistics Authority,Office for National Statistics,25-Apr-19,IT Management and Change,Digital Services and Technology,Software Box Ltd,134127,"54,929.80", IT Hosted Services, SME , Programme 
UK Statistics Authority,Office for National Statistics,25-Apr-19,Contractors,Digital Services and Technology,Certes Computing Ltd,134128,"18,894.90", Information Management Services , SME , Programme 
UK Statistics Authority,Office for National Statistics,25-Apr-19,Contractors,"Methods, Data and Research",Certes Computing Ltd,134128,"17,278.27", Information Management Services , SME , Programme 
UK Statistics Authority,Office for National Statistics,25-Apr-19,Contractors,"Methods, Data and Research",Certes Computing Ltd,134128,"16,813.20", Information Management Services , SME , Programme 
UK Statistics Authority,Office for National Statistics,25-Apr-19,Contractors,National Accounts and Economic Statistics,Certes Computing Ltd,134128,"14,091.12", Information Management Services , SME , Programme 
UK Statistics Authority,Office for National Statistics,25-Apr-19,Contractors,"Public, Population and Policy - Transformation",Certes Computing Ltd,134128,"32,257.66", Information Management Services , SME , Programme 
UK Statistics Authority,Office for National Statistics,25-Apr-19,Contractors,"Public, Population and Policy - Transformation",Certes Computing Ltd,134128,"15,051.00", Information Management Services , SME , Programme 
UK Statistics Authority,Office for National Statistics,25-Apr-19,ICT Outsourcing and Maintenance/Support,Digital Services and Technology,Computacenter (UK) Limited,134131,"72,582.00", Information Management Services , Large , Programme 
UK Statistics Authority,Office for National Statistics,25-Apr-19,IT (Owned) at Costs - Additions,Digital Services and Technology,Computacenter (UK) Limited,134131,"809,915.49", Information Management Services , Large , Programme 
UK Statistics Authority,Office for National Statistics,25-Apr-19,IT Management and Change,Digital Services and Technology,Computacenter (UK) Limited,134131,"155,981.77", Information Management Services , Large , Programme 
UK Statistics Authority,Office for National Statistics,25-Apr-19,Software Pool 4 Year,Digital Services and Technology,Computacenter (UK) Limited,134131,"240,997.28", Information Management Services , Large , Programme 
UK Statistics Authority,Office for National Statistics,25-Apr-19,Business Rates,People and Busines Services,Christchurch Borough Council,134133,"160,020.00", Christchurch Rates, Large , Programme 
UK Statistics Authority,Office for National Statistics,25-Apr-19,Consultancy,Digital Services and Technology,Equiniti-TopLevel,134135,"47,001.60", Information Management Services, SME , Programme 
UK Statistics Authority,Office for National Statistics,25-Apr-19,IT Management and Change,Digital Services and Technology,Actian Europe Limited,134137,"797,484.00", Information Management Services , SME , Programme 
UK Statistics Authority,Office for National Statistics,25-Apr-19,Auditing Services,"Finance, Planning and Performance",PriceWaterhouseCoopers Llp,134142,"48,302.40", Information Management Services, Large , Programme 
UK Statistics Authority,Office for National Statistics,25-Apr-19,IT Contractual Services,Digital Services and Technology,Mosaic Island,134143,"13,482.00", Information Management Services, Large , Programme 
UK Statistics Authority,Office for National Statistics,25-Apr-19,IT Contractual Services,Digital Services and Technology,Mosaic Island,134143,"13,482.00", Information Management Services, Large , Programme 
UK Statistics Authority,Office for National Statistics,25-Apr-19,Non-IT Contractual Payments,"Public, Population and Policy - Operations",HH Associates Ltd,134144,"36,000.00", Census Print and Post Out Contract, SME , Programme 
UK Statistics Authority,Office for National Statistics,26-Apr-19,Contractors,National Accounts and Economic Statistics,Mango Solutions,134153,"40,335.00", Information Mangement Services, SME , Programme 
UK Statistics Authority,Office for National Statistics,26-Apr-19,Facilities Management Contract Payments,"Finance, Planning and Performance",Vinci Construction UK Limited,134154,"623,648.67", Facility Management Services, Large , Programme 
UK Statistics Authority,Office for National Statistics,26-Apr-19,Contractors,Digital Services and Technology,Concept Information Technology Ltd T/A Concept Resourcing,134155,"15,680.40", Information Management Services, Large , Programme 
UK Statistics Authority,Office for National Statistics,26-Apr-19,Contractors,Economic Statistics Transformation,Concept Information Technology Ltd T/A Concept Resourcing,134155,"4,629.01", Information Management Services, Large , Programme 
UK Statistics Authority,Office for National Statistics,26-Apr-19,Contractors,Economic Statistics Transformation,Concept Information Technology Ltd T/A Concept Resourcing,134155,"1,982.90", Information Management Services, Large , Programme 
UK Statistics Authority,Office for National Statistics,26-Apr-19,Contractors,Economic Statistics Transformation,Concept Information Technology Ltd T/A Concept Resourcing,134155,"4,448.41", Information Management Services, Large , Programme 
UK Statistics Authority,Office for National Statistics,26-Apr-19,Contractors,Economic Statistics Transformation,Concept Information Technology Ltd T/A Concept Resourcing,134155,"9,906.22", Information Management Services, Large , Programme 
UK Statistics Authority,Office for National Statistics,26-Apr-19,Contractors,Economic Statistics Transformation,Concept Information Technology Ltd T/A Concept Resourcing,134155,"4,769.69", Information Management Services, Large , Programme 
UK Statistics Authority,Office for National Statistics,26-Apr-19,Contractors,Economic Statistics Transformation,Concept Information Technology Ltd T/A Concept Resourcing,134155,"4,907.95", Information Management Services, Large , Programme 
UK Statistics Authority,Office for National Statistics,26-Apr-19,Contractors,"Methods, Data and Research",Concept Information Technology Ltd T/A Concept Resourcing,134155,"6,917.57", Information Management Services, Large , Programme 
UK Statistics Authority,Office for National Statistics,26-Apr-19,Contractors,National Accounts and Economic Statistics,Concept Information Technology Ltd T/A Concept Resourcing,134155,"12,960.00", Information Management Services, Large , Programme 
UK Statistics Authority,Office for National Statistics,26-Apr-19,Contractors,National Accounts and Economic Statistics,Concept Information Technology Ltd T/A Concept Resourcing,134155,"4,515.13", Information Management Services, Large , Programme 
UK Statistics Authority,Office for National Statistics,26-Apr-19,IT Contractual Services,Digital Services and Technology,Concept Information Technology Ltd T/A Concept Resourcing,134155,"11,766.00", Information Management Services, Large , Programme 
UK Statistics Authority,Office for National Statistics,26-Apr-19,IT Contractual Services,Digital Services and Technology,Concept Information Technology Ltd T/A Concept Resourcing,134155,"28,800.00", Information Management Services, Large , Programme 
UK Statistics Authority,Office for National Statistics,26-Apr-19,Non-IT Contractual Payments,Economic Statistics Transformation,Concept Information Technology Ltd T/A Concept Resourcing,134155,"5,948.71", Information Management Services, Large , Programme 
UK Statistics Authority,Office for National Statistics,26-Apr-19,Short-Term Contract and Agency Staff - Full Cost,Economic Statistics Transformation,Concept Information Technology Ltd T/A Concept Resourcing,134155,"11,736.70", Information Management Services, Large , Programme 
UK Statistics Authority,Office for National Statistics,26-Apr-19,Short-Term Contract and Agency Staff - Full Cost,Economic Statistics Transformation,Concept Information Technology Ltd T/A Concept Resourcing,134155,"4,957.26", Information Management Services, Large , Programme 
UK Statistics Authority,Office for National Statistics,26-Apr-19,Short-Term Contract and Agency Staff - Full Cost,Economic Statistics Transformation,Concept Information Technology Ltd T/A Concept Resourcing,134155,"9,585.84", Information Management Services, Large , Programme 
UK Statistics Authority,Office for National Statistics,26-Apr-19,Short-Term Contract and Agency Staff - Full Cost,Economic Statistics Transformation,Concept Information Technology Ltd T/A Concept Resourcing,134155,973.5, Information Management Services, Large , Programme 
UK Statistics Authority,Office for National Statistics,26-Apr-19,Short-Term Contract and Agency Staff - Full Cost,Economic Statistics Transformation,Concept Information Technology Ltd T/A Concept Resourcing,134155,"18,046.29", Information Management Services, Large , Programme 
UK Statistics Authority,Office for National Statistics,26-Apr-19,Short-Term Contract and Agency Staff - Full Cost,"Finance, Planning and Performance",Concept Information Technology Ltd T/A Concept Resourcing,134155,"4,509.09", Information Management Services, Large , Programme 
UK Statistics Authority,Office for National Statistics,26-Apr-19,Short-Term Contract and Agency Staff - Full Cost,"Methods, Data and Research",Concept Information Technology Ltd T/A Concept Resourcing,134155,847.06, Information Management Services, Large ,Programme
UK Statistics Authority,Office for National Statistics,26-Apr-19,Short-Term Contract and Agency Staff - Full Cost,"Methods, Data and Research",Concept Information Technology Ltd T/A Concept Resourcing,134155,"4,235.28", Information Management Services, Large ,Programme
UK Statistics Authority,Office for National Statistics,26-Apr-19,Short-Term Contract and Agency Staff - Full Cost,National Accounts and Economic Statistics,Concept Information Technology Ltd T/A Concept Resourcing,134155,"4,957.26", Information Management Services, Large ,Programme
UK Statistics Authority,Office for National Statistics,26-Apr-19,Short-Term Contract and Agency Staff - Full Cost,National Accounts and Economic Statistics,Concept Information Technology Ltd T/A Concept Resourcing,134155,"2,974.36", Information Management Services, Large ,Programme
UK Statistics Authority,Office for National Statistics,26-Apr-19,Short-Term Contract and Agency Staff - Full Cost,National Accounts and Economic Statistics,Concept Information Technology Ltd T/A Concept Resourcing,134155,"11,062.26", Information Management Services, Large ,Programme
UK Statistics Authority,Office for National Statistics,26-Apr-19,Short-Term Contract and Agency Staff - Full Cost,National Accounts and Economic Statistics,Concept Information Technology Ltd T/A Concept Resourcing,134155,"4,421.35", Information Management Services, Large ,Programme
UK Statistics Authority,Office for National Statistics,26-Apr-19,Short-Term Contract and Agency Staff - Full Cost,National Accounts and Economic Statistics,Concept Information Technology Ltd T/A Concept Resourcing,134155,"4,957.26", Information Management Services, Large ,Programme
UK Statistics Authority,Office for National Statistics,26-Apr-19,Short-Term Contract and Agency Staff - Full Cost,National Accounts and Economic Statistics,Concept Information Technology Ltd T/A Concept Resourcing,134155,"4,957.26", Information Management Services, Large ,Programme
UK Statistics Authority,Office for National Statistics,26-Apr-19,Short-Term Contract and Agency Staff - Full Cost,National Accounts and Economic Statistics,Concept Information Technology Ltd T/A Concept Resourcing,134155,"9,914.52", Information Management Services, Large ,Programme
UK Statistics Authority,Office for National Statistics,26-Apr-19,Short-Term Contract and Agency Staff - Full Cost,National Accounts and Economic Statistics,Concept Information Technology Ltd T/A Concept Resourcing,134155,"4,957.26", Information Management Services, Large ,Programme
UK Statistics Authority,Office for National Statistics,26-Apr-19,Short-Term Contract and Agency Staff - Full Cost,National Accounts and Economic Statistics,Concept Information Technology Ltd T/A Concept Resourcing,134155,"3,302.63", Information Management Services, Large ,Programme
UK Statistics Authority,Office for National Statistics,26-Apr-19,Short-Term Contract and Agency Staff - Full Cost,National Accounts and Economic Statistics,Concept Information Technology Ltd T/A Concept Resourcing,134155,"4,957.26", Information Management Services, Large ,Programme
UK Statistics Authority,Office for National Statistics,26-Apr-19,Short-Term Contract and Agency Staff - Full Cost,Public Policy Analysis,Concept Information Technology Ltd T/A Concept Resourcing,134155,"2,786.78", Information Management Services, Large ,Programme
UK Statistics Authority,Office for National Statistics,26-Apr-19,Short-Term Contract and Agency Staff - Full Cost,Public Policy Analysis,Concept Information Technology Ltd T/A Concept Resourcing,134155,"1,982.91", Information Management Services, Large ,Programme
UK Statistics Authority,Office for National Statistics,26-Apr-19,IT Management and Change,Digital Services and Technology,Pluralsight,30001335,"98,429.37", Annual License Fee, Large , Programme 
Grand Total,,,,,,,,,,
